fUST/lending_fUST_20251220
["ID","MTS","AMOUNT","RATE_DAILY","PERIOD"]
[399263307,1766218213676,527.62119474,0.00013273,2]
[399263308,1766218220169,2.88361948,0.00013273,2]
[399263309,1766218220194,497.11638052,0.00013273,2]
[399263310,1766218221444,351.8658195,0.00013273,2]
[399263311,1766218222887,500.0,0.00013273,2]
[399263312,1766218223468,3489.47850321,0.0001351,2]
[399263313,1766218223546,500.0,0.00013273,2]
[399263314,1766218223619,500.0,0.00013273,2]
[399263315,1766218223955,500.0,0.00013273,2]
[399263316,1766218224813,500.0,0.00013273,2]
[399263317,1766218225504,500.0,0.00013273,2]
[399263345,1766218232641,-904.332295,0.00013699,2]
[399263346,1766218232650,-250.14217351,0.00013699,2]
[399263347,1766218232659,-217.45005808,0.00013699,2]
[399263348,1766218232672,-397.54994192,0.00013699,2]
[399263349,1766218232681,-302.0,0.000138,2]
[399263350,1766218232690,-688.0,0.0001382,2]
[399263351,1766218232699,-300.0,0.0001382,2]
[399263352,1766218232709,-1000.0,0.00013821,2]
[399263353,1766218232717,-398.7014194,0.00013821,2]
[399263354,1766218232727,-500.0,0.00013821,2]
[399263355,1766218232736,-1000.0,0.00013821,2]
[399263356,1766218232745,-500.0,0.00013821,2]
[399263357,1766218232754,-500.0,0.00013821,2]
[399263358,1766218232763,-500.0,0.00013821,2]
[399263359,1766218232772,-1003.92424406,0.00013821,2]
[399263360,1766218232781,-1310.8649346,0.00014368,2]
[399263362,1766218232790,-420.0,0.00015143,2]
[399263363,1766218232799,-222.11697863,0.000153,2]
[399263364,1766218232808,-165.43748435,0.000153,2]
[399263365,1766218232816,-235.51516042,0.000153,2]
[399263366,1766218232826,-333.33333333,0.000153,2]
[399263367,1766218232835,-407.29994638,0.000153,2]
[399263368,1766218232843,-258.4702571,0.000153,2]
[399263369,1766218232852,-217.228233,0.000153,2]
[399263370,1766218232861,-203.64997316,0.000153,2]
[399263371,1766218232871,-626.0767859,0.000153,30]
[399263372,1766218232880,-190.81997977,0.000153,2]
[399263373,1766218232889,-150.29763809,0.000153,2]
[399263374,1766218232898,-295.16776474,0.00015699,2]
[399263375,1766218232907,-314.2329043,0.00015716,2]
[399263376,1766218232916,-435.62774936,0.00015853,2]
[399263377,1766218232925,-208.35480587,0.00015875,2]
[399263378,1766218232935,-213.74931336,0.00015875,2]
[399263379,1766218232944,-407.29994638,0.00016269,4]
[399263380,1766218232953,-333.33333333,0.00016269,4]
[399263381,1766218232962,-167.0,0.00016438,2]
[399263382,1766218232971,-180.0,0.00016593,2]
[399263383,1766218232981,-3000.0,0.000171,2]
[399263384,1766218232990,-167.0,0.00017207,2]
[399263385,1766218233000,-217.228233,0.00017237,6]
[399263386,1766218233009,-258.4702571,0.00017237,6]
[399263387,1766218233018,-407.29994638,0.00017237,6]
[399263388,1766218233027,-333.33333333,0.00017237,6]
[399263389,1766218233036,-5863.161112,0.00017261,2]
[399263390,1766218233046,-235.51516042,0.00017439,6]
[399263391,1766218233055,-2321.9058278,0.00017576,2]
[399263392,1766218233064,-1928.27646856,0.00017616,2]
[399263393,1766218233073,-340.19335598,0.00017699,2]
[399263394,1766218233083,-500.0,0.00017716,2]
[399263395,1766218233092,-255.0,0.00017717,2]
[399263396,1766218233102,-8938.413645,0.00017717,2]
[399263397,1766218233111,-500.0,0.00017725,2]
[399263398,1766218233121,-150.0,0.00017725,2]
[399263399,1766218233259,-150.0,0.00017725,2]
[399263400,1766218233271,-500.0,0.00017725,2]
[399263401,1766218233281,-500.0,0.00017725,2]
[399263402,1766218233291,-165.43748435,0.00017795,6]
[399263403,1766218233301,-160.0,0.00017824,2]
[399263404,1766218233311,-500.0,0.00017862,2]
[399263405,1766218233321,-150.0,0.00017862,2]
[399263406,1766218233331,-500.0,0.00017862,2]
[399263407,1766218233341,-500.0,0.00017862,2]
[399263408,1766218233350,-168.0,0.00017884,2]
[399263409,1766218233359,-167.0,0.00017977,2]
[399263410,1766218233369,-500.0,0.00017988,2]
[399263411,1766218233378,-500.0,0.00017988,2]
[399263412,1766218233387,-500.0,0.00017988,2]
[399263413,1766218233397,-500.0,0.00017988,2]
[399263414,1766218233406,-500.0,0.00017988,2]
[399263415,1766218233415,-510.74092935,0.00017988,2]
[399263416,1766218233425,-250.0,0.00017988,2]
[399263417,1766218233434,-250.0,0.00017988,2]
[399263418,1766218233443,-250.0,0.00017988,2]
[399263419,1766218233452,-250.0,0.00017988,2]
[399263420,1766218233461,-574.12855637,0.00017988,2]
[399263421,1766218233470,-250.0,0.00017988,2]
[399263422,1766218233480,-250.0,0.00017988,2]
[399263423,1766218233489,-500.0,0.00017999,2]
[399263424,1766218233498,-500.0,0.00017999,2]
[399263425,1766218233507,-500.0,0.00017999,2]
[399263426,1766218233517,-500.0,0.00017999,2]
[399263427,1766218233526,-500.0,0.00017999,2]
[399263428,1766218233536,-500.0,0.00017999,2]
[399263429,1766218233545,-500.0,0.00017999,2]
[399263430,1766218233554,-500.0,0.00017999,2]
[399263431,1766218233564,-500.0,0.00017999,2]
[399263432,1766218233573,-532.7204231,0.00017999,2]
[399263433,1766218233583,-500.0,0.00017999,2]
[399263434,1766218233593,-254.77809694,0.00017999,2]
[399263435,1766218233603,-500.0,0.00017999,2]
[399263436,1766218233614,-500.0,0.00017999,2]
[399263437,1766218233624,-168.0,0.00018032,2]
[399263438,1766218233634,-168.0,0.00018064,2]
[399263439,1766218233644,-269.17602868,0.00018136,2]
[399263440,1766218233655,-308.91296426,0.00018136,2]
[399263441,1766218233664,-500.0,0.00018136,2]
[399263442,1766218233674,-407.29994638,0.00018206,8]
[399263443,1766218233683,-333.33333333,0.00018206,8]
[399263444,1766218233694,-999.0,0.00018231,2]
[399263445,1766218233703,-255.0,0.00018265,2]
[399263446,1766218233712,-945.13502208,0.00018272,2]
[399263447,1766218233723,-297.778,0.00018272,2]
[399263448,1766218233732,-184.65156163,0.00018272,2]
[399263449,1766218233742,-314.44716027,0.00018273,2]
[399263450,1766218233751,-260.0,0.00018372,2]
[399263451,1766218233760,-500.0,0.00018422,2]
[399263452,1766218233770,-500.0,0.00018422,2]
[399263453,1766218233780,-500.0,0.00018422,2]
[399263454,1766218233790,-150.0,0.00018422,2]
[399263455,1766218233800,-150.0,0.00018422,2]
[399263456,1766218233809,-150.0,0.00018422,2]
[399263457,1766218233818,-517.0,0.00018422,2]
[399263458,1766218233827,-500.0,0.00018422,2]
[399263459,1766218233836,-500.0,0.00018422,2]
[399263460,1766218233845,-500.0,0.00018422,2]
[399263461,1766218233854,-500.0,0.00018422,2]
[399263462,1766218233863,-500.0,0.00018422,2]
[399263463,1766218233871,-500.0,0.00018422,2]
[399263464,1766218233881,-500.0,0.00018422,2]
[399263465,1766218233890,-500.0,0.00018422,2]
[399263466,1766218233899,-150.0,0.00018422,2]
[399263467,1766218233908,-150.0,0.00018422,2]
[399263468,1766218233917,-168.0,0.00018472,2]
[399263469,1766218233926,-595.37131296,0.00018536,2]
[399263470,1766218233935,-500.0,0.00018559,2]
[399263471,1766218233945,-500.0,0.00018559,2]
[399263472,1766218233954,-209.43601465,0.00018559,2]
[399263473,1766218233964,-500.0,0.00018559,2]
[399263474,1766218233973,-150.0,0.00018559,2]
[399263475,1766218233982,-150.0,0.00018559,2]
[399263476,1766218233992,-517.0,0.00018559,2]
[399263477,1766218234001,-500.0,0.00018559,2]
[399263478,1766218234010,-500.0,0.00018559,2]
[399263479,1766218234024,-500.0,0.00018559,2]
[399263480,1766218234033,-500.0,0.00018559,2]
[399263481,1766218234042,-500.0,0.00018559,2]
[399263482,1766218234052,-500.0,0.00018559,2]
[399263483,1766218234063,-500.0,0.00018559,2]
[399263484,1766218234072,-500.0,0.00018559,2]
[399263485,1766218234081,-150.0,0.00018559,2]
[399263486,1766218234090,-150.0,0.00018559,2]
[399263487,1766218234100,-183.0,0.000186,120]
[399263488,1766218234109,-168.0,0.00018695,2]
[399263489,1766218234118,-500.0,0.00018696,2]
[399263490,1766218234129,-500.0,0.00018696,2]
[399263491,1766218234138,-155.91592251,0.00018696,2]
[399263492,1766218234148,-500.0,0.00018696,2]
[399263493,1766218234159,-150.0,0.00018696,2]
[399263494,1766218234170,-517.0,0.00018696,2]
[399263495,1766218234179,-500.0,0.00018696,2]
[399263496,1766218234188,-500.0,0.00018696,2]
[399263497,1766218234197,-500.0,0.00018696,2]
[399263498,1766218234206,-206.34530038,0.00018696,2]
[399263499,1766218234216,-500.0,0.00018696,2]
[399263500,1766218234225,-500.0,0.00018696,2]
[399263501,1766218234235,-500.0,0.00018696,2]
[399263502,1766218234244,-176.2946174,0.00018696,2]
[399263503,1766218234257,-150.0,0.00018696,2]
[399263504,1766218234266,-150.0,0.00018696,2]
[399263505,1766218234276,-168.0,0.00018713,2]
[399263506,1766218234286,-167.0,0.00018746,2]
[399263507,1766218234295,-255.0,0.00018813,2]
[399263508,1766218234305,-500.0,0.00018833,2]
[399263509,1766218234315,-568.29934115,0.00018833,2]
[399263510,1766218234325,-500.0,0.00018833,2]
[399263511,1766218234334,-150.0,0.00018833,2]
[399263512,1766218234344,-517.0,0.00018833,2]
[399263513,1766218234355,-500.0,0.00018833,2]
[399263514,1766218234364,-500.0,0.00018833,2]
[399263515,1766218234374,-500.0,0.00018833,2]
[399263516,1766218234384,-500.0,0.00018833,2]
[399263517,1766218234394,-500.0,0.00018833,2]
[399263518,1766218234404,-150.0,0.00018833,2]
[399263519,1766218234414,-156.85260926,0.00018833,2]
[399263520,1766218234514,-360.0,0.0001892,2]
[399263521,1766218234523,-500.0,0.0001897,2]
[399263522,1766218234533,-500.0,0.0001897,2]
[399263523,1766218234542,-163.35380819,0.0001897,2]
[399263524,1766218234552,-517.0,0.0001897,2]
[399263525,1766218234561,-500.0,0.0001897,2]
[399263526,1766218234570,-500.0,0.0001897,2]
[399263527,1766218234580,-500.0,0.0001897,2]
[399263528,1766218234590,-500.0,0.0001897,2]
[399263529,1766218234599,-500.0,0.0001897,2]
[399263530,1766218234609,-163.81596709,0.0001897,2]
[399263531,1766218234623,-617.40005154,0.00019084,2]
[399263532,1766218234632,-500.0,0.00019107,2]
[399263533,1766218234642,-500.0,0.00019107,2]
[399263534,1766218234651,-517.0,0.00019107,2]
[399263535,1766218234662,-500.0,0.00019107,2]
[399263536,1766218234671,-298.8715685,0.00019107,2]
[399263537,1766218234681,-14.02265871,0.00019107,2]
[399263538,1766218234699,-250.0,0.00017988,2]
[399263539,1766218234708,-572.58221456,0.00019107,2]
[399263540,1766218234717,-436.19695527,0.00019107,2]
[399263541,1766218234729,-63.80304473,0.00019107,2]
[399263542,1766218234738,-367.812576,0.00019107,2]
[399263543,1766218234747,-258.4702571,0.00019174,10]
[399263544,1766218234758,-118.20051523,0.00019174,10]
[399263783,1766218240925,-250.0,0.00017988,2]
[399263784,1766218240935,-257.00604151,0.00017988,2]
[399263785,1766218240943,-492.99395849,0.0001823,2]
[399264110,1766218243978,-7.00604151,0.0001823,2]
[399264112,1766218243988,-500.0,0.0001823,2]
[399264114,1766218243997,-36.12577235,0.0001823,2]
[399264128,1766218244119,-463.87422765,0.0001823,2]
[399264130,1766218244129,-447.87577235,0.0001823,2]
[399264241,1766218246873,-52.12422765,0.0001823,2]
[399264242,1766218246883,-212.59710688,0.0001823,2]
[399264243,1766218246894,-614.00934835,0.0001823,2]
[399264244,1766218246905,-500.0,0.0001823,2]
[399264245,1766218246914,-275.562962,0.0001823,2]
[399264246,1766218263131,500.0,0.00013273,2]
[399264247,1766218263345,500.0,0.00013273,2]
[399264248,1766218265023,205.87,0.0001,2]
[399264249,1766218267402,205.87,0.000102,2]
[399264250,1766218274223,500.68398952,0.00013273,2]
[399264251,1766218276286,150.0,8.739e-05,2]
[399264252,1766218276709,232.24,9.155e-05,2]
[399264253,1766218277215,348.36,9.571e-05,2]
[399264254,1766218277668,18.52530725,9.987e-05,2]
[399264255,1766218277698,445.95469275,9.987e-05,2]
[399264256,1766218278371,580.6,0.00010404,2]
[399264257,1766218278789,696.72,0.0001082,2]
[399264258,1766218279216,812.83,0.00011236,2]
[399264259,1766218279659,928.95,0.00011652,2]
[399264260,1766218280287,1045.07,0.00012068,2]
[399264261,1766218280856,1161.19,0.00012484,2]
[399264262,1766218335961,2412.66,0.0001351,2]
[399264263,1766218354557,150.0,8.692e-05,2]
[399264264,1766218355018,150.0,9.106e-05,2]
[399264265,1766218355426,150.0,9.52e-05,2]
[399264266,1766218355983,192.46,9.934e-05,2]
[399264267,1766218356429,240.57,0.00010348,2]
[399264268,1766218357069,288.69,0.00010762,2]
[399264269,1766218357480,336.8,0.00011176,2]
[399264270,1766218357970,384.92,0.0001159,2]
[399264271,1766218358346,22.59530725,0.00012004,2]
[399264272,1766218358377,410.43469275,0.00012004,2]
[399264273,1766218358817,481.15,0.00012418,2]
[399264274,1766218386363,649.62428448,0.00013273,2]
[399264275,1766218428157,150.0,8.695e-05,2]
[399264276,1766218428556,150.0,9.109e-05,2]
[399264277,1766218429122,150.0,9.523e-05,2]
[399264278,1766218429529,150.0,9.937e-05,2]
[399264279,1766218429966,150.0,0.00010351,2]
[399264280,1766218430461,150.0,0.00010765,2]
[399264281,1766218430860,166.85,0.00011179,2]
[399264282,1766218431335,190.69,0.00011594,2]
[399264283,1766218431841,214.52,0.00012008,2]
[399264284,1766218432274,238.36,0.00012422,2]
[399264285,1766218443368,500.0,0.00013273,2]
[399264286,1766218498475,150.0,8.723e-05,2]
[399264287,1766218683331,500.0,0.00013273,2]
[399264288,1766218884241,150.0,8.481e-05,2]
[399264289,1766218884638,150.0,8.884e-05,2]
[399264290,1766218885254,150.0,9.288e-05,2]
[399264291,1766218885662,150.0,9.692e-05,2]
[399264292,1766218886169,150.0,0.00010096,2]
[399264293,1766218886591,150.0,0.000105,2]
[399264294,1766218886993,150.0,0.00010904,2]
[399264295,1766218887903,150.0,0.00011307,2]
[399264296,1766218952519,150.0,8.491e-05,2]
[399264297,1766218953706,150.0,8.895e-05,2]
[399264298,1766218953983,150.0,9.299e-05,2]
[399264299,1766218954427,150.0,9.703e-05,2]
[399264300,1766218955104,150.0,0.00010108,2]
[399264301,1766218955598,150.0,0.00010512,2]
[399264302,1766218956019,150.0,0.00010916,2]
[399264303,1766218956476,150.0,0.00011321,2]
[399264304,1766219022128,150.0,8.493e-05,2]
[399264305,1766219022764,150.0,8.897e-05,2]
[399264306,1766219023380,150.0,9.302e-05,2]
[399264307,1766219023805,150.0,9.706e-05,2]
[399264308,1766219024253,150.0,0.00010111,2]
[399264309,1766219050390,500.0,0.00013273,2]
[399264310,1766219061081,500.0,0.00013273,2]
[399264311,1766219063165,500.0,0.00013273,2]
[399264312,1766219064653,500.0,0.00013273,2]
[399264313,1766219064946,500.0,0.00013273,2]
[399264314,1766219065672,500.0,0.00013273,2]
[399264315,1766219089109,150.0,8.47e-05,2]
[399264316,1766219089489,150.0,8.874e-05,2]
[399264317,1766219089896,150.0,9.277e-05,2]
[399264318,1766219090382,150.0,9.681e-05,2]
[399264319,1766219090846,161.06,0.00010084,2]
[399264320,1766219091308,193.28,0.00010487,2]
[399264321,1766219091706,225.49,0.00010891,2]
[399264322,1766219092302,257.7,0.00011294,2]
[399264323,1766219092622,289.91,0.00011697,2]
[399264324,1766219093096,322.13,0.00012101,2]
[399264325,1766219161634,150.0,8.513e-05,2]
[399264326,1766219162048,150.0,8.918e-05,2]
[399264327,1766219162510,150.0,9.324e-05,2]
[399264328,1766219162979,150.0,9.729e-05,2]
[399264329,1766219163392,150.0,0.00010135,2]
[399264330,1766219163852,176.38,0.0001054,2]
[399264331,1766219164291,205.78,0.00010945,2]
[399264332,1766219164731,235.18,0.00011351,2]
[399264333,1766219165216,264.58,0.00011756,2]
[399264334,1766219165571,168.52,0.00012161,2]
[399264335,1766219165606,125.45,0.00012161,2]
[399264336,1766219171428,500.0,0.00013273,2]
[399264337,1766219174244,500.0,0.00013273,2]
[399264338,1766219183183,500.0,0.00013273,2]
[399264339,1766219183651,500.0,0.00013273,2]
[399264340,1766219184450,500.0,0.00013273,2]
[399264341,1766219186206,500.96042768,0.00013273,2]
[399264342,1766219186767,500.0,0.00013273,2]
[399264344,1766219223588,415.08400314,0.00013273,2]
[399264345,1766219232815,150.0,8.545e-05,2]
[399264346,1766219233223,150.0,8.952e-05,2]
[399264347,1766219233731,150.0,9.359e-05,2]
[399264348,1766219234172,150.0,9.766e-05,2]
[399264349,1766219234618,150.0,0.00010173,2]
[399264350,1766219235042,150.0,0.0001058,2]
[399264351,1766219235516,150.0,0.00010987,2]
[399264356,1766219300518,150.0,8.597e-05,2]
[399264357,1766219301279,150.0,9.007e-05,2]
[399264358,1766219301713,150.0,9.416e-05,2]
[399264359,1766219302186,150.0,9.825e-05,2]
[399264360,1766219302742,150.0,0.00010235,2]
[399264361,1766219304043,500.0,0.00013273,2]
[399264363,1766219348721,500.55205509,0.00013273,2]
[399264394,1766219431611,150.0,8.563e-05,2]
[399264398,1766219431641,-1237.29786326,0.00014501,2]
[399264399,1766219431651,-612.65091569,0.00014501,2]
[399264400,1766219432014,150.0,8.971e-05,2]
[399264401,1766219432908,150.0,9.379e-05,2]
[399264402,1766219433644,150.0,9.787e-05,2]
[399264414,1766219437761,-925.41947073,0.00014501,2]
[399264415,1766219437778,-2224.63175032,0.00014501,2]
[399264416,1766219437788,-977.83771142,0.00014647,2]
[399264417,1766219437798,-200.0,0.00014795,2]
[399264418,1766219437807,-1597.53053826,0.00015205,2]
[399264429,1766219440044,-4958.17270198,0.00015205,2]
[399264447,1766219497887,150.0,8.55e-05,2]
[399264448,1766219523832,500.0,0.00013273,2]
[399264449,1766219524108,500.0,0.00013273,2]
[399264450,1766219562676,150.0,8.536e-05,2]
[399264451,1766219628228,150.0,8.521e-05,2]
[399264452,1766219692927,150.0,8.538e-05,2]
[399264453,1766219763870,500.0,0.00013273,2]
[399264454,1766220009579,457.96351409,0.0001351,2]
[399264455,1766220009617,1391.98526486,0.0001351,2]
[399264456,1766220024774,477.0,0.00013273,2]
[399264457,1766220063619,369.17641008,0.00013273,2]
[399264458,1766220081347,150.0,8.539e-05,2]
[399264459,1766220081425,150.0,8.946e-05,2]
[399264460,1766220081759,150.0,9.352e-05,2]
[399264461,1766220082419,150.0,9.759e-05,2]
[399264462,1766220083352,150.0,0.00010165,2]
[399264463,1766220083813,156.52,0.00010572,2]
[399264464,1766220084219,182.6,0.00010979,2]
[399264465,1766220084738,208.69,0.00011385,2]
[399264466,1766220085016,234.78,0.00011792,2]
[399264467,1766220085088,1047.0,0.00014,30]
[399264468,1766220085436,260.86,0.00012198,2]
[399264469,1766220152879,150.0,8.565e-05,2]
[399264470,1766220153311,150.0,8.973e-05,2]
[399264471,1766220153701,150.0,9.381e-05,2]
[399264472,1766220154793,150.0,9.789e-05,2]
[399264473,1766220155054,150.0,0.00010197,2]
[399264474,1766220155473,150.0,0.00010605,2]
[399264475,1766220156321,159.58,0.00011012,2]
[399264476,1766220156797,182.38,0.0001142,2]
[399264477,1766220157422,205.17,0.00011828,2]
[399264478,1766220158351,227.97,0.00012236,2]
[399264479,1766220191397,500.0,0.00013273,2]
[399264480,1766220222517,150.0,8.675e-05,2]
[399264481,1766220222946,150.0,9.088e-05,2]
[399264482,1766220223361,150.0,9.501e-05,2]
[399264483,1766220223820,150.0,9.914e-05,2]
[399264484,1766220224294,150.0,0.00010327,2]
[399264485,1766220225144,150.0,0.0001074,2]
[399264486,1766220225826,150.0,0.00011153,2]
[399264487,1766220226057,150.0,0.00011566,2]
[399264488,1766220247083,500.0,0.00013273,2]
[399264489,1766220262662,500.0,0.00013273,2]
[399264490,1766220290416,150.0,8.649e-05,2]
[399264491,1766220290817,150.0,9.061e-05,2]
[399264492,1766220292451,150.0,9.473e-05,2]
[399264493,1766220292537,150.0,9.885e-05,2]
[399264494,1766220292734,150.0,0.00010296,2]
[399264495,1766220293129,150.0,0.00010708,2]
[399264496,1766220293569,150.0,0.0001112,2]
[399264497,1766220294110,169.3,0.00011532,2]
[399264498,1766220295019,190.46,0.00011944,2]
[399264499,1766220295902,183.53832506,0.00012356,2]
[399264500,1766220295928,28.08167494,0.00012356,2]
[399264501,1766220305006,165.24059546,0.00013273,2]
[399264502,1766220361066,150.0,8.59e-05,2]
[399264503,1766220361460,150.0,8.999e-05,2]
[399264504,1766220527188,475.97105954,0.0001153,7]
[399264505,1766220555733,150.0,8.548e-05,2]
[399264506,1766220555891,150.0,8.955e-05,2]
[399264507,1766220556005,150.0,9.362e-05,2]
[399264508,1766220556239,150.0,9.769e-05,2]
[399264509,1766220621494,150.0,8.342e-05,2]
[399264510,1766220621930,150.0,8.739e-05,2]
[399264511,1766220622420,150.0,9.136e-05,2]
[399264535,1766220632046,-867.185437,0.00013699,2]
[399264536,1766220632056,-354.38830441,0.00013699,2]
[399264537,1766220632064,-615.0,0.00013699,2]
[399264538,1766220632074,-289.29,0.00014795,2]
[399264539,1766220632083,-2321.9058278,0.00014991,2]
[399264540,1766220632092,-500.0,0.00015232,2]
[399264541,1766220632101,-418.1781992,0.00015699,2]
[399264542,1766220632110,-151.61073482,0.00015754,2]
[399264543,1766220632119,-361.22803626,0.00016257,2]
[399264544,1766220632129,-300.0,0.00016348,2]
[399264545,1766220632138,-300.0,0.00016348,2]
[399264546,1766220632147,-1200.0,0.00016348,2]
[399264547,1766220632156,-822.96059492,0.00016349,2]
[399264548,1766220632165,-2106.0,0.00016349,2]
[399264549,1766220632174,-937.0,0.00016349,2]
[399264550,1766220632183,-856.45762511,0.00016349,2]
[399264551,1766220632193,-194.6,0.00016438,2]
[399264552,1766220632202,-2106.0,0.00016897,2]
[399264553,1766220632213,-526.40436427,0.00016985,2]
[399264554,1766220632224,-47.7241921,0.00016985,2]
[399264555,1766220632233,-500.0,0.00016985,2]
[399264556,1766220632243,-500.0,0.00016985,2]
[399264557,1766220632253,-6.70166509,0.00016985,2]
[399264559,1766220638204,-493.29833491,0.00016985,2]
[399264560,1766220638221,-500.0,0.00016985,2]
[399264561,1766220638240,-500.0,0.00016985,2]
[399264562,1766220638260,-500.0,0.00016985,2]
[399264563,1766220638276,-500.0,0.00016985,2]
[399264564,1766220638295,-500.0,0.00016985,2]
[399264565,1766220638313,-500.0,0.00016985,2]
[399264566,1766220638329,-500.0,0.00016985,2]
[399264568,1766220638346,-500.0,0.00016985,2]
[399264570,1766220638365,-151.0,0.00016985,2]
[399264571,1766220638380,-870.852607,0.00016995,2]
[399264572,1766220638395,-23099.0961585,0.00016995,2]
[399264573,1766220638411,-259.596447,0.00016995,2]
[399264574,1766220638427,-259.596447,0.00016995,2]
[399264575,1766220638442,-259.596447,0.00016995,2]
[399264576,1766220638456,-259.596447,0.00016995,2]
[399264577,1766220638471,-151.0,0.00016995,2]
[399264578,1766220638486,-151.0,0.00016995,2]
[399264579,1766220638500,-276.79576,0.00016995,2]
[399264580,1766220638515,-151.0,0.00016995,2]
[399264581,1766220638530,-194.6,0.00017207,2]
[399264582,1766220638545,-500.0,0.0001731,2]
[399264583,1766220638560,-595.37131296,0.00017533,2]
[399264584,1766220638575,-481.968094,0.00017699,2]
[399264585,1766220638590,-618.68484018,0.00017733,2]
[399264586,1766220638605,-649.56025479,0.00017853,2]
[399264587,1766220638619,-168.0,0.00017911,2]
[399264588,1766220638634,-194.6,0.00017977,2]
[399264589,1766220638649,-617.40005154,0.00018081,2]
[399264590,1766220638664,-151.0,0.00018081,2]
[399264591,1766220638678,-151.0,0.000181,2]
[399264592,1766220638694,-151.0,0.00018121,2]
[399264593,1766220638709,-168.0,0.00018122,2]
[399264594,1766220638724,-500.0,0.0001817,5]
[399264595,1766220638740,-171.77172029,0.0001817,2]
[399264596,1766220638758,-328.22827971,0.0001817,2]
[399264597,1766220638775,-500.0,0.0001817,5]
[399264598,1766220638790,-500.0,0.0001817,2]
[399264599,1766220638805,-20.55172029,0.0001817,2]
[399264625,1766220660213,274.82947261,0.0001153,7]
[399264626,1766220687797,150.0,8.333e-05,2]
[399264627,1766220697279,426.8632,8e-05,2]
[399264628,1766220727887,500.6258318,0.00013273,2]
[399264629,1766220751882,150.0,8.372e-05,2]
[399264630,1766220752276,150.0,8.77e-05,2]
[399264631,1766220752696,150.0,9.169e-05,2]
[399264632,1766220753122,150.0,9.568e-05,2]
[399264633,1766220753519,150.0,9.966e-05,2]
[399264634,1766220753953,150.0,0.00010365,2]
[399264635,1766220754379,150.0,0.00010763,2]
[399264636,1766220819423,150.0,8.387e-05,2]
[399264637,1766220819881,150.0,8.786e-05,2]
[399264638,1766220820293,150.0,9.185e-05,2]
[399264639,1766220829845,219.04429806,0.0001259,7]
[399264640,1766220831756,876.17719226,0.00013311,7]
[399264641,1766220843718,500.50010694,0.00013273,2]
[399264642,1766220884577,150.0,8.334e-05,2]
[399264643,1766220885128,150.0,8.731e-05,2]
[399264644,1766220885555,150.0,9.127e-05,2]
[399264645,1766220885977,150.0,9.524e-05,2]
[399264646,1766220886570,150.0,9.921e-05,2]
[399264647,1766220886864,162.46,0.00010318,2]
[399264648,1766220887622,189.54,0.00010715,2]
[399264649,1766220888025,216.62,0.00011112,2]
[399264650,1766220888376,243.7,0.00011508,2]